lending/lending_fUSD_20241214
["ID","MTS","AMOUNT","RATE_DAILY","PERIOD"]
[345373870,1734200708563,5122.0,0.0001,2]
[345373871,1734200708590,13000.0,0.0001,2]
[345373872,1734200708618,2774.1,0.0001,2]
[345373873,1734200708641,10000.0,0.0001,2]
[345373874,1734200708666,10000.0,0.0001,2]
[345373875,1734200708692,10000.0,0.0001,2]
[345373876,1734200708714,10000.0,0.0001,2]
[345373877,1734200708737,10000.0,0.0001,2]
[345373878,1734200708761,10000.0,0.0001,2]
[345373879,1734200708787,10000.0,0.0001,2]
[345373880,1734200708811,10000.0,0.0001,2]
[345373881,1734200708834,10000.0,0.0001,2]
[345373882,1734200708857,10000.0,0.0001,2]
[345373883,1734200708879,10000.0,0.0001,2]
[345373884,1734200708906,10000.0,0.0001,2]
[345373885,1734200708933,10000.0,0.0001,2]
[345373886,1734200708958,10000.0,0.0001,2]
[345373887,1734200708981,10000.0,0.0001,2]
[345373888,1734200709004,10000.0,0.0001,2]
[345373889,1734200709029,10000.0,0.0001,2]
[345373890,1734200709051,10000.0,0.0001,2]
[345373891,1734200709073,10000.0,0.0001,2]
[345373892,1734200709096,10000.0,0.0001,2]
[345373893,1734200709118,10000.0,0.0001,2]
[345373894,1734200709140,10000.0,0.0001,2]
[345373895,1734200709162,10000.0,0.0001,2]
[345373896,1734200709184,10000.0,0.0001,2]
[345373897,1734200709207,10000.0,0.0001,2]
[345373898,1734200709229,10000.0,0.0001,2]
[345373899,1734200709251,10000.0,0.0001,2]
[345373900,1734200709275,10000.0,0.0001,2]
[345373901,1734200709297,10000.0,0.0001,2]
[345373902,1734200709319,10000.0,0.0001,2]
[345373903,1734200709343,10000.0,0.0001,2]
[345373904,1734200709366,10000.0,0.0001,2]
[345373905,1734200709389,10000.0,0.0001,2]
[345373906,1734200709414,10000.0,0.0001,2]
[345373907,1734200709437,10000.0,0.0001,2]
[345373908,1734200709459,10000.0,0.0001,2]
[345373909,1734200709482,10000.0,0.0001,2]
[345373910,1734200709505,10000.0,0.0001,2]
[345373911,1734200709529,10000.0,0.0001,2]
[345373912,1734200709553,10000.0,0.0001,2]
[345373913,1734200709827,10000.0,0.0001,2]
[345373914,1734200709851,10000.0,0.0001,2]
[345373915,1734200709874,10000.0,0.0001,2]
[345373916,1734200709896,10000.0,0.0001,2]
[345373917,1734200709924,10000.0,0.0001,2]
[345373918,1734200709947,10000.0,0.0001,2]
[345373919,1734200709976,10000.0,0.0001,2]
[345373920,1734200710000,10000.0,0.0001,2]
[345373921,1734200710024,10000.0,0.0001,2]
[345373922,1734200710052,10000.0,0.0001,2]
[345373923,1734200710076,10000.0,0.0001,2]
[345373924,1734200710100,10000.0,0.0001,2]
[345373925,1734200710123,10000.0,0.0001,2]
[345373926,1734200710147,10000.0,0.0001,2]
[345373927,1734200710175,10000.0,0.0001,2]
[345373928,1734200710205,6352432.45557054,0.0001,2]
[345373929,1734200829145,-292.2792939,0.00013499,2]
[345373930,1734200829166,-154.39,0.00013699,2]
[345373931,1734200829188,-713.13078493,0.00013836,2]
[345373932,1734200844097,-160.8980394,0.00013836,2]
[345373933,1734200881104,496.4,0.00010137,2]
[345373954,1734200964120,-665.52711503,0.00013736,2]
[345373955,1734200964145,-300.0,0.00013835,2]
[345373956,1734200964173,-1295.97117567,0.00013836,2]
[345373957,1734200964195,-2167.0,0.00013836,2]
[345373958,1734200964218,-2167.0,0.00013836,2]
[345373959,1734200964239,-2167.0,0.00013836,2]
[345373960,1734200964262,-500.0,0.00015,2]
[345373961,1734200964286,-1221.72622199,0.00015,2]
[345373962,1734200964312,-1016.69001001,0.00015,2]
[345373963,1734200964335,-420.0,0.00015159,2]
[345373964,1734200964356,-587.0,0.0001661,2]
[345373965,1734200964377,-175.5,0.00016712,2]
[345373966,1734200964401,-496.4,0.00016813,2]
[345373967,1734200964425,-550.0,0.00017,2]
[345373968,1734200964448,-150.0,0.00017265,2]
[345373969,1734200964471,-157.598812,0.00017533,2]
[345373970,1734200964494,-965.76,0.00018201,2]
[345373971,1734200972106,-5000.0,0.000189,2]
[345373979,1734201031950,-328.995,0.00019,2]
[345373986,1734201037942,-271.005,0.00019,2]
[345373987,1734201037951,-10722.24990624,0.00019,2]
[345373988,1734201038014,-10994.06333944,0.00019,2]
[345373989,1734201038027,-1000.0,0.00019,3]
[345373990,1734201038036,-1018.29,0.00019,2]
[345373991,1734201038046,-1015.29,0.00019,2]
[345373992,1734201038056,-1000.0,0.00019419,2]
[345373993,1734201038066,-200.0,0.00019419,2]
[345373994,1734201038076,-5000.0,0.000195,2]
[345373995,1734201038095,-555.0,0.00019691,2]
[345373996,1734201038105,-1916.23,0.00019692,2]
[345373997,1734201038114,-1435.15668172,0.000199,2]
[345373998,1734201038124,-1435.15668172,0.000199,2]
[345373999,1734201038134,-1435.15668172,0.000199,2]
[345374000,1734201038142,-1435.15668172,0.000199,2]
[345374001,1734201038152,-1435.15668172,0.000199,2]
[345374002,1734201038162,-1435.15668172,0.000199,2]
[345374003,1734201038172,-1435.15668172,0.000199,2]
[345374004,1734201038182,-1435.15668172,0.000199,2]
[345374005,1734201038192,-1435.15668172,0.000199,2]
[345374006,1734201038202,-1435.15668172,0.000199,2]
[345374007,1734201038212,-1435.15668172,0.000199,2]
[345374008,1734201038222,-1435.15668172,0.000199,2]
[345374009,1734201038232,-1435.15668172,0.000199,2]
[345374010,1734201038242,-1435.15668172,0.000199,2]
[345374011,1734201038252,-1435.15668172,0.000199,2]
[345374012,1734201038261,-1435.15668172,0.000199,2]
[345374013,1734201038271,-1435.15668172,0.000199,2]
[345374014,1734201038281,-1435.15668172,0.000199,2]
[345374015,1734201038290,-1435.15668172,0.000199,2]
[345374016,1734201038300,-1435.15,0.000199,2]
[345374017,1734201038309,-14650.99167463,0.000199,2]
[345374018,1734201038319,-157.31366918,0.000199,2]
[345374019,1734201038329,-324.71142511,0.000199,2]
[345374020,1734201038349,-164.24183504,0.000199,2]
[345374021,1734201038359,-500.0,0.00019973,2]
[345374022,1734201038368,-152.74,0.0001999,2]
[345374023,1734201038378,-385.24036649,0.0001999,2]
[345374024,1734201038388,-152.74,0.0001999,2]
[345374025,1734201038398,-152.74,0.0001999,2]
[345374026,1734201038408,-152.74,0.0001999,2]
[345374027,1734201038418,-152.74,0.0001999,2]
[345374028,1734201038428,-152.74,0.0001999,2]
[345374029,1734201038438,-152.74,0.0001999,2]
[345374030,1734201038448,-152.74,0.0001999,2]
[345374031,1734201038457,-152.74,0.0001999,2]
[345374032,1734201038467,-152.74,0.0001999,2]
[345374033,1734201038476,-152.74,0.0001999,2]
[345374034,1734201038486,-152.74,0.0001999,2]
[345374035,1734201038495,-152.74,0.0001999,2]
[345374036,1734201038504,-152.74,0.0001999,2]
[345374037,1734201038514,-152.74,0.0001999,2]
[345374038,1734201038523,-152.74,0.0001999,2]
[345374039,1734201038533,-152.74,0.0001999,2]
[345374040,1734201038543,-152.74,0.0001999,2]
[345374041,1734201038553,-152.74,0.0001999,2]
[345374042,1734201038562,-152.74,0.0001999,2]
[345374043,1734201038572,-152.74,0.0001999,2]
[345374044,1734201038584,-152.74,0.0001999,2]
[345374045,1734201038598,-152.74,0.0001999,2]
[345374046,1734201038608,-152.74,0.0001999,2]
[345374047,1734201038618,-152.74,0.0001999,2]
[345374048,1734201038628,-152.74,0.0001999,2]
[345374049,1734201038637,-152.74,0.0001999,2]
[345374050,1734201038646,-152.74,0.0001999,2]
[345374051,1734201038656,-152.74,0.0001999,2]
[345374052,1734201038666,-152.74,0.0001999,2]
[345374053,1734201038676,-152.74,0.0001999,2]
[345374054,1734201038687,-152.74,0.0001999,2]
[345374055,1734201038698,-152.74,0.0001999,2]
[345374056,1734201038708,-152.74,0.0001999,2]
[345374057,1734201038718,-152.74,0.0001999,2]
[345374058,1734201038729,-152.74,0.0001999,2]
[345374059,1734201038739,-152.74,0.0001999,2]
[345374060,1734201038749,-152.74,0.0001999,2]
[345374061,1734201038759,-385.24036649,0.0001999,2]
[345374062,1734201038769,-385.24036649,0.0001999,2]
[345374063,1734201038779,-500.0,0.00019998,2]
[345374064,1734201038788,-261.58852759,0.00019998,2]
[345374065,1734201038799,-500.0,0.00019998,2]
[345374066,1734201038810,-500.0,0.00019998,2]
[345374067,1734201038820,-500.0,0.00019998,2]
[345374068,1734201038830,-500.0,0.00019998,2]
[345374069,1734201038855,-266.88948815,0.00019999,5]
[345374070,1734201038864,-5951.06,0.00019999,2]
[345374071,1734201038874,-150.0,0.0002,3]
[345374072,1734201038884,-473.04062299,0.0002,2]
[345374073,1734201038902,-255.55680264,0.0002,2]
[345374074,1734201038926,-7763.76607153,0.0002,2]
[345374075,1734201038935,-6217.94365295,0.0002,2]
[345374076,1734201038944,-742476.45000831,0.0002,4]
[345374077,1734201038954,-5000.0,0.0002,2]
[345374078,1734201038963,-9433112.24794006,0.0002,2]
[345374079,1734201038972,-2504.27887851,0.0002,2]
[345374080,1734201038981,-401.01404891,0.0002,2]
[345374081,1734201038991,-240.60842934,0.0002,2]
[345374082,1734201039000,-160.40561956,0.0002,2]
[345374083,1734201039010,-1000.0,0.0002,2]
[345374084,1734201039023,-628.14,0.00020035,2]
[345374085,1734201039032,-13438.76,0.00020106,2]
[345374086,1734201039042,-250.0,0.00020149,2]
[345374087,1734201039052,-156.41,0.00020179,30]
[345374088,1734201039062,-2152.73502258,0.00020272,2]
[345374089,1734201039072,-319.64,0.00020326,2]
[345374090,1734201039086,-250.0,0.00020378,2]
[345374091,1734201039102,-2152.73502258,0.00020384,2]
[345374092,1734201039112,-320.0,0.00020401,2]
[345374093,1734201039121,-965.76,0.00020465,2]
[345374094,1734201039131,-2152.73502258,0.00020496,2]
[345374095,1734201039140,-500.0,0.00020521,2]
[345374096,1734201039150,-564.0,0.00020539,2]
[345374097,1734201039160,-1895.0,0.00020539,2]
[345374098,1734201039169,-1254.0,0.00020539,2]
[345374099,1734201039179,-929.0,0.00020539,2]
[345374100,1734201039188,-817.0,0.00020539,2]
[345374101,1734201039197,-3765.0,0.00020539,2]
[345374102,1734201039207,-535.0,0.00020539,2]
[345374103,1734201039218,-1263.0,0.00020539,2]
[345374104,1734201039228,-150.0,0.00020539,2]
[345374105,1734201039237,-3185.658,0.00020539,2]
[345374106,1734201039247,-676.439,0.00020539,2]
[345374107,1734201039258,-2152.73502258,0.00020608,2]
[345374108,1734201039267,-2152.73502258,0.0002072,2]
[345374109,1734201039277,-11020.01,0.00020773,2]
[345374110,1734201039286,-2152.73502258,0.00020832,2]
[345374111,1734201039295,-163.4,0.00020869,2]
[345374112,1734201039304,-6344.59100489,0.0002088,2]
[345374113,1734201039314,-315.46144066,0.000209,2]
[345374114,1734201039324,-2152.73502258,0.00020944,2]
[345374115,1734201039341,-989.15,0.0002095,2]
[345374116,1734201039351,-2999.99,0.00020951,2]
[345374117,1734201039360,-1249.87,0.00020951,2]
[345374118,1734201039370,-1692.61,0.00020951,2]
[345374119,1734201039380,-999.99,0.00020951,2]
[345374120,1734201039389,-150.99,0.00020951,2]
[345374121,1734201039399,-1437.75,0.00020951,2]
[345374122,1734201039409,-1989.0,0.00020951,2]
[345374123,1734201039419,-299.99,0.00020951,7]
[345374124,1734201039626,-9999.99,0.00020951,2]
[345374125,1734201039637,-150.99,0.00020951,2]
[345374126,1734201039647,-563.52,0.00020951,2]
[345374127,1734201039657,-378.5,0.00020951,2]
[345374128,1734201039667,-1861.46,0.00020951,2]
[345374129,1734201039677,-19783.56683314,0.00020995,2]
[345374130,1734201039687,-3854.3539,0.00020995,2]
[345374131,1734201039697,-5000.0,0.00021,2]
[345374132,1734201039707,-650.0,0.00021,2]
[345374133,1734201039716,-2698193.5254318,0.00021,2]
[345374134,1734201039726,-1140.72441171,0.00021,2]
[345374135,1734201039736,-188.22605093,0.00021,2]
[345374136,1734201039746,-500.0,0.0002102,2]
[345374137,1734201039756,-500.0,0.00021029,2]
[345374138,1734201039766,-2152.73502258,0.00021056,2]
[345374139,1734201039775,-621.8375668,0.00021095,3]
[345374140,1734201039785,-216.87115331,0.00021095,3]
[345374141,1734201039795,-500.0,0.00021095,3]
[345374142,1734201039804,-500.0,0.00021095,3]
[345374143,1734201039814,-376.33285353,0.00021095,3]
[345374144,1734201039823,-500.0,0.00021095,3]
[345374145,1734201039838,-500.0,0.00021095,3]
[345374147,1734201039847,-500.0,0.00021095,3]
[345374149,1734201039857,-500.0,0.00021095,3]
[345374151,1734201039868,-500.0,0.00021095,3]
[345374152,1734201039878,-500.0,0.00021095,3]
[345374153,1734201039888,-521.93737018,0.00021095,3]
[345374154,1734201039898,-314.09789176,0.00021095,3]
[345374155,1734201039908,-501.27483059,0.00021095,3]
[345374156,1734201039918,-500.0,0.00021095,3]
[345374157,1734201039928,-500.0,0.00021095,3]
[345374158,1734201039939,-500.0,0.00021095,3]
[345374159,1734201039949,-505.98288873,0.00021095,3]
[345374160,1734201039960,-500.13997397,0.00021095,3]
[345374161,1734201039969,-610.28205522,0.00021095,3]
[345374162,1734201039979,-500.0,0.00021095,3]
[345374163,1734201039989,-332.91291233,0.00021095,3]
[345374164,1734201039999,-500.0,0.00021095,3]
[345374165,1734201040009,-800.0,0.00021095,2]
[345374166,1734201040019,-800.0,0.00021095,2]
[345374167,1734201040032,-800.0,0.00021095,2]
[345374168,1734201040043,-800.0,0.00021095,2]
[345374169,1734201040053,-800.0,0.00021095,2]
[345374170,1734201040063,-800.0,0.00021095,2]
[345374171,1734201040074,-500.0,0.00021095,3]
[345374172,1734201040090,-500.0,0.00021095,3]
[345374173,1734201040099,-500.0,0.00021095,3]
[345374174,1734201040110,-500.0,0.00021095,3]
[345374175,1734201040122,-500.0,0.00021095,3]
[345374176,1734201040132,-500.0,0.00021095,3]
[345374177,1734201040144,-500.0,0.00021095,3]
[345374178,1734201040154,-500.0,0.00021095,3]
[345374179,1734201040163,-500.0,0.00021095,3]
[345374180,1734201040173,-500.0,0.00021095,3]
[345374181,1734201040182,-500.0,0.00021095,3]
[345374182,1734201040192,-500.0,0.00021095,3]
[345374183,1734201040201,-500.0,0.00021095,3]
[345374184,1734201040211,-500.0,0.00021095,3]
[345374185,1734201040221,-500.0,0.00021095,3]
[345374186,1734201040231,-500.0,0.00021095,3]
[345374187,1734201040240,-500.0,0.00021095,3]
[345374188,1734201040249,-500.0,0.00021095,3]
[345374189,1734201040259,-500.0,0.00021095,3]
[345374190,1734201040268,-500.0,0.00021095,3]
[345374191,1734201040278,-505.62056394,0.00021095,3]
[345374192,1734201040287,-500.0,0.00021095,3]
[345374193,1734201040297,-500.0,0.00021095,3]
[345374194,1734201040306,-500.0,0.00021095,3]
[345374195,1734201040316,-500.0,0.00021095,3]
[345374196,1734201040326,-500.0,0.00021095,3]
[345374197,1734201040342,-500.0,0.00021095,3]
[345374198,1734201040351,-500.0,0.00021095,3]
[345374199,1734201040361,-314.44537411,0.00021095,3]
[345374200,1734201040372,-314.45,0.00021095,3]
[345374201,1734201040382,-500.0,0.00021095,3]
[345374202,1734201040392,-500.0,0.00021095,3]
[345374203,1734201040402,-500.0,0.00021095,3]
[345374204,1734201040411,-500.0,0.00021095,3]
[345374205,1734201040421,-500.0,0.00021095,3]
[345374206,1734201040431,-500.0,0.00021095,3]
[345374207,1734201040440,-500.0,0.00021095,3]
[345374208,1734201040450,-500.0,0.00021095,3]
[345374209,1734201040459,-500.0,0.00021095,3]
[345374210,1734201040469,-500.0,0.00021095,3]
[345374211,1734201040478,-500.0,0.00021095,3]
[345374212,1734201040488,-541.46,0.00021095,3]
[345374214,1734201040498,-888.82,0.00021095,3]
[345374216,1734201040507,-888.82,0.00021095,3]
[345374218,1734201040516,-888.82,0.00021095,3]
[345374220,1734201040525,-888.82,0.00021095,3]
[345374222,1734201040534,-888.82,0.00021095,3]
[345374224,1734201040544,-888.82,0.00021095,3]
[345374226,1734201040553,-888.82,0.00021095,3]
[345374228,1734201040563,-888.82,0.00021095,3]
[345374229,1734201040573,-888.82,0.00021095,3]
[345374230,1734201040585,-888.82,0.00021095,3]
[345374231,1734201040597,-888.82,0.00021095,3]
[345374232,1734201040606,-888.82,0.00021095,3]
[345374233,1734201040616,-888.82,0.00021095,3]
[345374234,1734201040625,-888.82,0.00021095,3]
[345374235,1734201040634,-888.82,0.00021095,3]
[345374236,1734201040644,-888.82,0.00021095,3]
[345374237,1734201040653,-888.82,0.00021095,3]
[345374238,1734201040663,-888.82,0.00021095,3]
[345374239,1734201040672,-888.82,0.00021095,3]
[345374240,1734201040681,-888.82,0.00021095,3]
[345374241,1734201040691,-888.82,0.00021095,3]
[345374242,1734201040700,-888.82,0.00021095,3]
[345374243,1734201040710,-888.82,0.00021095,3]
[345374244,1734201040719,-888.91,0.00021095,3]
[345374245,1734201040728,-500.0,0.00021095,3]
[345374246,1734201040738,-500.0,0.00021095,3]
[345374247,1734201040747,-500.0,0.00021095,3]
[345374248,1734201040757,-500.0,0.00021095,3]
[345374249,1734201040766,-500.0,0.00021095,3]
[345374250,1734201040776,-500.0,0.00021095,3]
[345374251,1734201040786,-500.0,0.00021095,3]
[345374252,1734201040796,-500.0,0.00021095,3]
[345374253,1734201040806,-500.0,0.00021095,3]
[345374254,1734201040815,-500.0,0.00021095,3]
[345374255,1734201040825,-500.0,0.00021095,3]
[345374256,1734201040839,-500.0,0.00021095,3]
[345374257,1734201040849,-500.0,0.00021095,3]
[345374258,1734201040858,-500.0,0.00021095,3]
[345374259,1734201040868,-304.19422657,0.00021095,3]
[345374260,1734201040877,-500.0,0.00021095,3]
[345374261,1734201040887,-500.0,0.00021095,3]
[345374262,1734201040896,-500.0,0.00021095,3]
[345374263,1734201040905,-500.0,0.00021095,3]
[345374264,1734201040915,-500.0,0.00021095,3]
[345374265,1734201040924,-500.0,0.00021095,3]
[345374266,1734201040934,-500.0,0.00021095,3]
[345374267,1734201040943,-500.0,0.00021095,3]
[345374268,1734201040953,-500.0,0.00021095,3]
[345374269,1734201040962,-500.0,0.00021095,3]
[345374270,1734201040971,-500.0,0.00021095,3]
[345374271,1734201040981,-500.0,0.00021095,3]
[345374272,1734201040990,-500.0,0.00021095,3]
[345374273,1734201040999,-530.11,0.00021095,3]
[345374274,1734201041009,-512.29,0.00021095,3]
[345374275,1734201041018,-512.29,0.00021095,3]
[345374276,1734201041030,-512.29,0.00021095,3]
[345374277,1734201041039,-512.29,0.00021095,3]
[345374278,1734201041048,-512.29,0.00021095,3]
[345374279,1734201041057,-512.29,0.00021095,3]
[345374280,1734201041067,-512.29,0.00021095,3]
[345374281,1734201041080,-512.29,0.00021095,3]
[345374282,1734201041094,-512.29,0.00021095,3]
[345374283,1734201041105,-512.29,0.00021095,3]
[345374284,1734201041115,-512.29,0.00021095,3]
[345374285,1734201041125,-512.29,0.00021095,3]
[345374286,1734201041134,-512.29,0.00021095,3]
[345374287,1734201041144,-512.29,0.00021095,3]
[345374288,1734201041154,-512.29,0.00021095,3]
[345374289,1734201041164,-512.29,0.00021095,3]
[345374290,1734201041173,-512.29,0.00021095,3]
[345374291,1734201041183,-512.29,0.00021095,3]
[345374292,1734201041194,-512.29,0.00021095,3]
[345374293,1734201041204,-512.29,0.00021095,3]
[345374294,1734201041214,-512.29,0.00021095,3]
[345374295,1734201041224,-471.38295185,0.00021095,3]
[345374296,1734201041234,-512.29,0.00021095,3]
[345374297,1734201041243,-512.29,0.00021095,3]
[345374298,1734201041253,-512.35,0.00021095,3]
[345374299,1734201041262,-500.0,0.00021095,3]
[345374300,1734201041271,-500.0,0.00021095,3]
[345374301,1734201041280,-500.0,0.00021095,3]
[345374302,1734201041290,-500.0,0.00021095,3]
[345374303,1734201041299,-500.0,0.00021095,3]
[345374304,1734201041309,-500.0,0.00021095,3]
[345374305,1734201041318,-500.0,0.00021095,3]
[345374306,1734201041327,-500.0,0.00021095,3]
[345374307,1734201041343,-500.0,0.00021095,3]
[345374308,1734201041353,-500.0,0.00021095,3]
[345374309,1734201041362,-500.0,0.00021095,3]
[345374310,1734201041371,-500.0,0.00021095,3]
[345374311,1734201041382,-587.83250763,0.00021095,3]
[345374312,1734201041391,-500.0,0.00021095,3]
[345374313,1734201041401,-500.0,0.00021095,3]
[345374314,1734201041410,-500.0,0.00021095,3]
[345374315,1734201041420,-500.0,0.00021095,3]
[345374316,1734201041430,-500.0,0.00021095,3]
[345374317,1734201041439,-500.0,0.00021095,3]
[345374318,1734201041448,-500.0,0.00021095,3]
[345374319,1734201041458,-19783.56683313,0.00021118,2]
[345374320,1734201041467,-14650.99167463,0.0002115,2]
[345374321,1734201041477,-320.0,0.00021156,2]
[345374322,1734201041486,-2152.73502258,0.00021168,2]
[345374323,1734201041495,-500.0,0.00021199,3]
[345374324,1734201041505,-500.0,0.00021199,3]
[345374325,1734201041514,-500.0,0.00021199,3]
[345374326,1734201041524,-500.0,0.00021199,3]
[345374327,1734201041533,-500.0,0.00021199,3]
[345374328,1734201041543,-500.0,0.00021199,3]
[345374329,1734201041552,-500.0,0.00021199,3]
[345374330,1734201041561,-500.0,0.00021199,3]
[345374331,1734201041571,-398.74029467,0.00021199,3]
[345374332,1734201041580,-150.0,0.000212,2]
[345374333,1734201041597,-352.29892281,0.000212,2]
[345374334,1734201041606,-19783.56683313,0.00021241,2]
[345374335,1734201041616,-17520.91695155,0.00021246,2]
[345374336,1734201041625,-800.0,0.00021274,2]
[345374337,1734201041635,-800.0,0.00021274,2]
[345374338,1734201041644,-800.0,0.00021274,2]
[345374339,1734201041653,-800.0,0.00021274,2]
[345374340,1734201041662,-876.19814808,0.00021274,2]
[345374341,1734201041671,-2152.73502258,0.0002128,2]
[345374342,1734201041681,-2272.0,0.00021325,2]
[345374343,1734201041690,-19783.56683313,0.00021363,2]
[345374344,1734201041700,-278.528,0.0002137,2]
[345374345,1734201041709,-2152.73502258,0.00021392,2]
[345374346,1734201041718,-1843.959,0.00021436,2]
[345374347,1734201041728,-164.687,0.00021436,2]
[345374348,1734201041738,-19783.56683313,0.00021486,2]
[345374349,1734201041750,-2152.73502258,0.00021504,2]
[345374350,1734201041760,-4486.05801393,0.0002152,2]
[345374351,1734201041770,-653.5,0.00021534,2]
[345374352,1734201041779,-19783.56683313,0.00021609,2]
[345374353,1734201041789,-2152.73502258,0.00021616,2]
[345374354,1734201041798,-2152.73502258,0.00021728,2]
[345374355,1734201041807,-19783.56683313,0.00021732,2]
[345374356,1734201041817,-2262.95715346,0.00021756,2]
[345374357,1734201041827,-2152.73502258,0.0002184,2]
[345374358,1734201041841,-1000.0,0.00021846,2]
[345374359,1734201041850,-19783.56683313,0.00021854,2]
[345374360,1734201041860,-10668.135,0.00021879,2]
[345374361,1734201041870,-1010.47,0.0002188,2]
[345374362,1734201041881,-500.0,0.00021899,3]
[345374363,1734201041891,-500.0,0.00021899,3]
[345374364,1734201041900,-500.0,0.00021899,3]
[345374365,1734201041909,-659.89,0.00021899,3]
[345374366,1734201041918,-500.0,0.00021899,3]
[345374367,1734201041928,-352.40812405,0.00021899,3]
[345374368,1734201041938,-500.0,0.00021899,3]
[345374369,1734201041947,-500.0,0.00021899,3]
[345374370,1734201041958,-500.0,0.00021899,3]
[345374371,1734201041967,-1500.0,0.000219,2]
[345374372,1734201041977,-200.0,0.000219,2]
[345374373,1734201041987,-320.0,0.00021911,2]
[345374374,1734201041997,-2665.37,0.00021917,3]
[345374375,1734201042006,-2665.37,0.00021917,3]
[345374376,1734201042016,-2665.37,0.00021917,3]
[345374377,1734201042030,-2665.37,0.00021917,3]
[345374378,1734201042040,-2665.37,0.00021917,3]
[345374379,1734201042049,-2665.37,0.00021917,3]
[345374380,1734201042060,-2665.37,0.00021917,3]
[345374381,1734201042071,-2665.37,0.00021917,3]
[345374382,1734201042080,-2665.37,0.00021917,3]
[345374383,1734201042094,-2665.37,0.00021917,3]
[345374384,1734201042104,-2665.37,0.00021917,3]
[345374385,1734201042114,-2665.37,0.00021917,3]
[345374386,1734201042123,-2665.37,0.00021917,3]
[345374387,1734201042132,-2665.37,0.00021917,3]
[345374388,1734201042142,-2665.37,0.00021917,3]
[345374389,1734201042152,-2665.37,0.00021917,3]
[345374390,1734201042163,-2665.37,0.00021917,3]
[345374391,1734201042172,-2665.37,0.00021917,3]
[345374392,1734201042182,-2665.37,0.00021917,3]
[345374393,1734201042192,-2665.37,0.00021917,3]
[345374394,1734201042202,-2665.37,0.00021917,3]
[345374395,1734201042211,-2665.37,0.00021917,3]
[345374396,1734201042221,-2665.37,0.00021917,3]
[345374397,1734201042230,-2665.46215452,0.00021917,3]
[345374398,1734201042239,-2152.73502258,0.00021952,7]
[345374399,1734201042248,-1400.0,0.00021972,2]
[345374400,1734201042257,-500.0,0.00021972,2]
[345374401,1734201042266,-700.0,0.00021972,2]
[345374402,1734201042275,-19783.56683313,0.00021977,2]
[345374403,1734201042285,-500.0,0.00021978,3]
[345374404,1734201042295,-500.0,0.00021978,3]
[345374405,1734201042304,-500.0,0.00021978,3]
[345374406,1734201042313,-500.0,0.00021978,3]
[345374407,1734201042322,-500.0,0.00021978,3]
[345374408,1734201042331,-428.08958377,0.00021978,3]
[345374409,1734201042347,-500.0,0.00021978,3]
[345374410,1734201042355,-500.0,0.00021978,3]
[345374411,1734201042364,-500.0,0.00021978,3]
[345374412,1734201042373,-1814.03,0.00021978,3]
[345374413,1734201042385,-500.0,0.00021978,3]